Cogmind - Beta 16.1 @@@ ROGUE MODE // 2026.04.03 @ 16:41:09 Player: SunShine214 Result: Destroyed by D0-6B6(R) with Subdweller Machine Gun Performance ------------- Evolutions (0) 0 Regions Visited (2) 400 Robots Destroyed (27) 135 Value Destroyed (511) 511 Prototype IDs (0) 0 Alien Tech Used (0) 0 Bonus (0) 0 TOTAL SCORE: 1046 Bonus ------- None Cogmind --------- Core Integrity 0/250 Matter 300/300 Energy 71/100 System Corruption 7% Temperature Cool (0) Movement Core (150) Ox2 Location -10/Subcaves Parts ------- > --- POWER (1) -------- (None) > --- PROPULSION (2) --- (None) > --- UTILITY (2) ------ Small Storage Unit Sensor Array > --- WEAPON (2) ------- Makeshift Spear > --- INVENTORY (8) ---- Light Ion Engine Medium Storage Unit Signal Interpreter Makeshift Kinetic Plating Assault Rifle Light Assault Rifle Mining Laser Peak State ------------ > --- POWER ------------ Light Ion Engine > --- PROPULSION ------- Light Treads Aluminum Leg > --- UTILITY ---------- Small Storage Unit Sensor Array > --- WEAPON ----------- Light Assault Rifle Battle Rifle > --- INVENTORY -------- Light Ion Engine Flight Unit Flight Unit Medium Storage Unit Signal Interpreter Makeshift Kinetic Plating Assault Rifle Mining Laser [Rating: 9] Favorites ----------- Power Light Ion Engine Engine Light Ion Engine Propulsion Light Treads Treads Light Treads Leg Aluminum Leg Flight Unit Flight Unit Utility Small Storage Unit Device Sensor Array Storage Small Storage Unit Weapon Assault Rifle Energy Gun EM Pulse Gun Ballistic Gun Assault Rifle Special Weapon Mining Laser Piercing Weapon Makeshift Spear Build | -11 -10 -10 ------- Run | Yrd Mat Sub Slots Evolved . | . . . Power . | . . . Propulsion . | . . . Utility . | . . . Weapon . | . . . Parts Attached 18 | 6 6 6 Power 3 | 1 1 1 Engine 3 | 1 1 1 Core . | . . . Reactor . | . . . Propulsion 5 | 2 1 2 Treads 2 | 2 . . Leg 1 | . 1 . Wheel . | . . . Hover . | . . . Flight 2 | . . 2 Utility 3 | 1 1 1 Device 2 | . 1 1 Storage 1 | 1 . . Processor . | . . . Hackware . | . . . Protection . | . . . Artifact . | . . . Weapon 7 | 2 3 2 Energy Gun 2 | 1 1 . Energy Cannon . | . . . Ballistic Gun 3 | 1 1 1 Ballistic Cannon . | . . . Launcher . | . . . Special Weapon 1 | . 1 . Impact Weapon . | . . . Slashing Weapon . | . . . Piercing Weapon 1 | . . 1 Special Melee Weapon . | . . . Unidentified Prototypes . | . . . Parts Lost 9 | . 3 6 Power 2 | . 1 1 Propulsion 4 | . 1 3 Utility 1 | . . 1 Weapon 2 | . 1 1 Highest Loss Streak 4 | . 3 4 To Critical Strikes . | . . . Average Backups 6 | . 6 7 Power 1 | . 1 1 Propulsion 1 | . 1 2 Utility 2 | . 1 3 Weapon 1 | . 1 1 Tool/Special . | . . . Unused Backups 10 | . 6 4 Power . | . . . Propulsion 7 | . 6 1 Utility 3 | . . 3 Weapon . | . . . Tool/Special . | . . . Average Slot Usage (%) 93 | . 89 97 Engine 11 | . 9 13 Treads 19 | . 23 12 Leg 7 | . 4 13 Device 11 | . 9 13 Storage 14 | . 14 14 Energy Gun 7 | . 12 . Ballistic Gun 16 | . 12 23 Special Weapon 3 | . 3 4 Peak Build Rating 9 | 6 7 9 Average Rating 6 | 4 6 7 On Entrance 4 | . 6 6 Avg Prop Armor Cover (%) 7 | . 8 7 Naked Turns . | . . . Heaviest Build 13 | 12 13 12 Greatest Support 40 | 40 40 20 Greatest Overweight (x) 1 | . . 1 Average Overweight (x) . | . . . Largest Inventory Capacity 8 | 8 8 8 Average Capacity 7 | 7 8 8 Most Carried 8 | 2 8 8 Average Carried 6 | . 7 7 Final Capacity 8 | 8 8 8 Final Carried 8 | 2 8 7 Class Distribution -------------------- 100% | Mutant Dominant Class ---------------- Mutant | -10/Materials Mutant | -10/Subcaves Resources | -11 -10 -10 ----------- Run | Yrd Mat Sub Matter Collected 648 | 100 325 223 Remotely . | . . . Salvage Created 680 | . 568 112 Parts 54 | . 48 6 Haulers Intercepted . | . . . Recyclers Shooed . | . . . Parts Field Recycled . | . . . Retrieved Matter . | . . . Parts Self-Destructed 8 | . . 8 Prevented . | . . . Parts Restored . | . . . Kills | -11 -10 -10 ------- Run | Yrd Mat Sub Combat Hostiles Destroyed 20 | . 16 4 Guns 19 | . 15 4 AOE 1 | . 1 . Classes Destroyed 7 | 1 5 1 Worker 2 | . 2 . Builder 2 | . 2 . Tunneler 1 | 1 . . Watcher 2 | . 2 . Swarmer 11 | . 9 2 Grunt 8 | . 7 1 Sentry 1 | . . 1 Best Kill Streak 7 | 1 7 2 Combat Bots Only 3 | . 3 2 Max Kills in Single Turn 2 | 1 2 1 Gunslinging . | . . . Exploded 1 | . 1 . Melee . | . . . Uniques/NPCs Destroyed . | . . . Combat | -11 -10 -10 -------- Run | Yrd Mat Sub Hostile Shots Fired 105 | . 58 47 Missed 27 | . 13 14 Hits 78 | . 45 33 Projectile 78 | . 45 33 Critical Strikes 4 | . 1 3 Damage Taken 1087 | . 506 581 Core 250 | . 115 135 Absorbed by Shields . | . . . Core Remaining (%) 100 | 100 . . Volleys Fired 75 | . 49 26 Largest 2 | . 2 2 Hottest 140 | . 140 120 Shots Fired 149 | . 96 53 Gun 136 | . 88 48 Cannon . | . . . Launcher . | . . . Special 13 | . 8 5 Kinetic 95 | . 47 48 Thermal 13 | . 8 5 Explosive . | . . . Electromagnetic 41 | . 41 . Robot Hit Streak 6 | . 6 6 Robot Miss Streak 6 | . 6 3 Penetration Max . | . . . Secondary Targets 3 | . 2 1 Max Gunslinging Chain 1 | . 1 1 Shots Hit Robots 74 | . 47 27 Core Hits 34 | . 28 6 Critical Kills . | . . . Critical Parts Destroyed . | . . . Critical Strikes 2 | . 2 . Corrupt 2 | . 2 . Melee Attacks . | . . . Impact . | . . . Slashing . | . . . Piercing . | . . . Sneak Attacks . | . . . Combat Hostiles . | . . . Follow-up Attacks . | . . . Damage Inflicted 1033 | 4 727 302 Guns 899 | . 597 302 Cannons . | . . . Explosions 106 | . 106 . Melee . | . . . Ramming 4 | 4 . . Kinetic 629 | . 327 302 Thermal 50 | . 50 . Explosive 80 | . 80 . Electromagnetic 270 | . 270 . Impact . | . . . Slashing . | . . . Piercing . | . . . Highest Corruption 7 | . 7 7 Average Corruption 6 | . 5 7 Corruption Purged . | . . . Corruption Blocked . | . . . Effects 36 | . 11 25 Message Errors 7 | . 4 3 Matter Fused 7 | . 1 6 Heat Flow Errors 1 | . 1 . Energy Discharges 7 | . 2 5 Parts Rejected 1 | . . 1 Data Loss (minor) 7 | . 2 5 Data Loss (major) 4 | . . 4 Misfires 2 | . 1 1 Overload Shots . | . . . Overflow Damage . | . . . Projectiles . | . . . Explosions . | . . . Melee . | . . . Knockbacks . | . . . Impact . | . . . Kinetic . | . . . Secondary . | . . . Self-Inflicted Damage 74 | . 74 . Shots 1 | . 1 . Rammed . | . . . Targets Rammed 1 | 1 . . Kicked . | . . . Crushed 1 | 1 . . Highest Temperature 397 | . 219 397 Average Temperature 59 | . 36 211 Received Heat Transfer 804 | . 114 690 Siege Activations . | . . . Martial Activations . | . . . Shielding Activations . | . . . Robots Disrupted . | . . . Combat Hostiles . | . . . Robots Corrupted . | . . . Combat Hostiles . | . . . Parts Fried . | . . . Impact Corruptions . | . . . Robots Melted . | . . . Combat Hostiles . | . . . Parts Melted . | . . . Heat Transferred 100 | . 100 . Parts Sabotaged . | . . . Parts Stolen . | . . . Parts Stripped . | . . . Power Chain Reactions 1 | . 1 . Alert | -11 -10 -10 ------- Run | Yrd Mat Sub Maximum Alert Level . | . . . Low Security (%) 100 | 100 100 . Level 1 . | . . . Level 2 . | . . . Level 3 . | . . . Level 4 . | . . . Level 5 . | . . . High Security . | . . . Max Security . | . . . Peak Influence 163 | 5 163 . Initial 3 | . 3 . Average 86 | . 93 . Influence Increases 630 | 5 535 90 Destroy 0b10 Robot/C 400 | . 320 80 Destroy 0b10 Robot/NC 35 | 5 30 . Destroy Leader 74 | . 64 10 Successful Hack 12 | . 12 . Disable Machine 30 | . 30 . Destroy Structure 19 | . 19 . Lose Combat Pursuer 60 | . 60 . Influence Decreases 630 | . 473 157 Entered New Map 35 | . 2 33 Time Decay 555 | . 441 114 Lost Part 40 | . 30 10 Squads Dispatched 2 | . 2 . Investigation 1 | . 1 . Extermination . | . . . Reinforcement 1 | . 1 . Assault . | . . . Garrison . | . . . Intercept . | . . . Searches Triggered . | . . . Construction Impeded . | . . . Haulers Reinforced . | . . . Active Scanning Responses . | . . . Cargo Convoy Interrupts . | . . . Stealth | -11 -10 -10 --------- Run | Yrd Mat Sub Distress Signals 2 | . 2 . Communications Jammed . | . . . Distress Signals . | . . . Times Spotted 35 | . 27 8 Peak Tracking Total 5 | . 5 3 Tactical Retreats 2 | . 2 . Traps | -11 -10 -10 ------- Run | Yrd Mat Sub Traps Triggered 6 | . 6 . Indirectly . | . . . Trap Hack Attempts . | . . . Triggered . | . . . Disarmed . | . . . Reprogrammed . | . . . Reused . | . . . Traps Extracted . | . . . Installed . | . . . Triggered . | . . . Machines | -11 -10 -10 ---------- Run | Yrd Mat Sub Machines Disabled 2 | . 2 . Max in Single Turn 1 | . 1 . Machines Repaired . | . . . Machines Dismantled . | . . . Machines Sabotaged . | . . . Overloaded Fab Kills . | . . . Hacking | -11 -10 -10 --------- Run | Yrd Mat Sub Machines Accessed 5 | . 3 2 Terminals 3 | . 3 . Fabricators . | . . . Repair Stations . | . . . Recycling Units . | . . . Scanalyzers . | . . . Garrison Access . | . . . Total Hacks 8 | . 6 2 Successful 5 | . 3 2 Failed 3 | . 3 . Catastrophic . | . . . Database Lockouts . | . . . Manual . | . . . Terminals 6 | . 6 . Fabricators . | . . . Repair Stations . | . . . Recycling Units . | . . . Scanalyzers . | . . . Garrison Access . | . . . Terminal Hacks 5 | . 3 2 Open Door 1 | . . 1 Hauler Manifests 1 | . 1 . Registered Components 1 | . 1 . Zone Layout 1 | . 1 . Release Object 1 | . . 1 Fabricator Hacks . | . . . Repair Station Hacks . | . . . Recycling Unit Hacks . | . . . Scanalyzer . | . . . Garrison Access Hacks . | . . . Unauthorized Hacks . | . . . Terminals . | . . . Fabricators . | . . . Repair Stations . | . . . Recycling Units . | . . . Scanalyzers . | . . . Garrison Access . | . . . Data Cores Recovered . | . . . Used . | . . . Hacking Detections 1 | . 1 . Full Trace Events . | . . . Feedback Events . | . . . Feedback Blocked . | . . . Robot Schematics Acquired . | . . . Robots Built . | . . . Authchips . | . . . Time . | . . . Total Robot Build Rating . | . . . Part Schematics Acquired . | . . . Parts Built . | . . . Authchips . | . . . Time . | . . . Total Part Build Rating . | . . . Part Studies Acquired . | . . . Parts Repaired . | . . . Time . | . . . Parts Recycled . | . . . Recycled Matter . | . . . Retrieved Matter . | . . . Retrieved Components . | . . . Parts Scanalyzed . | . . . Part Schematics Acquired . | . . . Parts Damaged . | . . . Bothacking | -11 -10 -10 ------------ Run | Yrd Mat Sub Used RIF Installer . | . . . Robots Hacked . | . . . Non-combat . | . . . Combat . | . . . Robot Hacks Applied . | . . . Relay Couplers Released . | . . . Fabnet Peak Effective % . | . . . Robots Rewired . | . . . Allies Hacked . | . . . Hacks Repelled . | . . . Allies | -11 -10 -10 -------- Run | Yrd Mat Sub Total Allies . | . . . Largest Group . | . . . Highest-Rated Group . | . . . Highest-Rated Ally . | . . . Total Orders . | . . . Ally Attacks . | . . . Total Damage . | . . . Kills . | . . . Allies Corrupted . | . . . Allies Melted . | . . . Intel | -11 -10 -10 ------- Run | Yrd Mat Sub Active Infowar (turns) 1548 | . 790 758 Sensors 1548 | . 790 758 Robot Analysis Total . | . . . Derelict Logs Recovered 1 | . . 1 Drone Launches . | . . . Drone Recoveries . | . . . Exploration | -11 -10 -10 ------------- Run | Yrd Mat Sub Turns Passed 2017 | 94 1151 772 Spaces Moved 996 | 53 478 465 Core 2 | 2 . . Treads 917 | 51 478 388 Legs 14 | . . 14 Wheels . | . . . Hover . | . . . Flight 63 | . . 63 Fastest Speed 37 | 50 160 37 Average Speed 152 | 155 160 145 Slowest Speed 190 | 160 160 190 Overloaded Moves . | . . . Propulsion Burnouts . | . . . Robots Hopped . | . . . Potential Cave-ins . | . . . Cave-ins Triggered . | . . . Exploration Rate (%) 34 | 4 68 32 Regions Visited 2 Branch Regions 1 Pre-discovered Areas . | . . . Known Exits Taken . | . . . Unknown Exits Taken 2 | 1 1 . Scrap Searched . | . . . Spaces Dug . | . . . Terrain Destroyed 16 | . 16 . Melee . | . . . Projectile . | . . . AOE 16 | . 16 . Terrain Rammed . | . . . Walls Destroyed . | . . . Machines Disabled . | . . . Actions | -11 -10 -10 --------- Run | Yrd Mat Sub Total 1324 | 61 758 505 Wait 204 | . 204 . Move 994 | 52 477 465 Hop . | . . . Pick Up 17 | 2 13 2 Fast Attach 9 | 6 2 1 Attach 5 | . 1 4 Detach 1 | . . 1 Swap 9 | . 5 4 Drop 8 | . 7 1 Fire 75 | . 49 26 Melee . | . . . Ram . | . . . Kick . | . . . Crush 1 | 1 . . Escape Stasis . | . . . Rewire . | . . . Trap . | . . . Miscellaneous 1 | . . 1 Route ------- -11/Scrapyard -10/Materials (discovered 4 exits: [*Mat x2] / [*Min] / *Sub) -10/Subcaves (discovered 1 exit: [*Mat]) History --------- Turn | Location | Event 6 | -11/Scrapyard | Discovered new exit (range 16) 95 | -11/Scrapyard | Entered Materials 184 | -10/Materials | Discovered new exit (range 14) 319 | -10/Materials | Build established: Mutant 585 | -10/Materials | Discovered new exit (range 11) 818 | -10/Materials | Discovered new exit (range 8) 904 | -10/Materials | Lost 3 parts (1p1n1w) 1245 | -10/Materials | Discovered new exit (range 2) 1246 | -10/Materials | Entered Subcaves 1314 | -10/Subcaves | Shifting Twisted Machinery released Sub. Monowheel 1418 | -10/Subcaves | Shifting Twisted Machinery released Mak. Kinetic Plating 1641 | -10/Subcaves | Learned 4 Materials zone layouts 1656 | -10/Subcaves | A swath of the cavern ceiling suddenly collapsed 1754 | -10/Subcaves | Released subatomizers from SUBCON Basin 1856 | -10/Subcaves | Discovered new exit (range 13) 1980 | -10/Subcaves | Core integrity fell below 50% 2000 | -10/Subcaves | Shifting Twisted Machinery released Mak. Spear 2014 | -10/Subcaves | Core integrity fell below 20% 2018 | -10/Subcaves | Destroyed by D0-6B6(R) with Subdweller Machine Gun Last Messages --------------- 01929_ M|9 IYPM4OE WC|IJDOQJPLR,SKBKOY 01930_ ZK-QP3(R): "ECOKILL!" 01934_ Subatomizers dissect the Sub. Monowheel. 01943_ Critical hit (Meltdown: +290). 01946_ Subatomizers dissect the Sub. Monowheel. 01949_ Lgt. Treads destroyed. 01949_ Critical hit (Meltdown: +250). 01966_ C,CJF&OMZXVNAAUJJ,DMOZ1OE 0 01981_ Lgt. Ion Engine destroyed. 01984_ System corrupted: Aluminum Leg rejected. 01987_ Battle Rifle destroyed. 01989_ Y7-77J(R) destroyed. 01993_ Acquired 33 matter. 01995_ Acquired 51 matter. Mak. Spear falls loose from the Twisted Machinery. 02002_ Acquired Mak. Spear. 02004_ System corrupted: Substantial component data lost. 02013_ Flight Unit destroyed. Map ----- +----------------------------------------------------+ | | | | | | | | | ?????????????????????????????????????????????????? | | ?????????????????????????????????????????????????? | | ?????????????????????????????????????????????????? | | ?????????????????????????????????????????????????? | | ?????????????????????????????????????????????????? | | ?????????????????????????????????????????????????? | | ?????????????????????????????????????????????????? | | ?????????????????????????????????????????????????? | | ?????????????????????????????????????????????????? | | ?????????????????????????????????????????????????? | | ?????????????????????????????????????????????????? | | ?????????????????????????????????????????????????? | | ?????????????????????????????????????????????????? | | ?????????????????????????????????????????????????? | | ?????????????????????????????????????????????????? | | ?????????????????????????????????????????????????? | | ??????????????#########??????????????????????????? | | ??????????????# ## #??????????????????????????? | | ?????????????## ###????????????????????????? | | ?????????????# ####?????????????????????? | | ?????????????# ## #?????????????????????? | | ?????????????## # R @ # #???????????????? | | ??????###??#### RR #???????????????? | | ????### #??# ## # #??????????????? | | ???##"" #### [ # ### #### ##??????????????? | | ???#""" ## ##?# # #??????????????? | | ???###""""""""" ### #?? #?????????????? | | ?????#"" ### ### ##?# # #?????????????? | | ?????##" ##?#### %=## # #????????????? | | ??????## #?????## ?????????????? | | ???????#" #??????## ????????????? | | ???????## #???????# ????????????? | | ????????####???????# #????????????? | | ???????????????????# % ## #?????????????? | | ???????????????????##! & %###?# ??????????????? | | ???????????????????## ##??????????????????? | | ??????????????????## % #??????????????????? | | ??????????????????# #????????????? | | ??????????????????#% #"# ### ?????????????? | | ????????????#?????## #### ##????????????????? | | ????????????#%?????# ##########?????????????????? | | ??????? ##### ???## % & ####???????????????????? | | ?????? ??# !% ####????????????????? | | ???????# #?# [ ####?????????????? | | ????????# ## = #?????????????? | | ???????## % ##?????????????? | +----------------------------------------------------+ Best States ------------- Heat Dissipation 25 Energy Generation 10 Energy Capacity 125 Matter Stores 300 Matter Capacity 300 Sight Range 16 Robot Scan Range 14 Terrain Scan Density 10 Evasion (%) 62 Recoil Reduction 2 Item Schematics ----------------- None Robot Schematics ------------------ None Fabricated ------------ Nothing Repaired ---------- Nothing Studied --------- None Alien Tech Used ----------------- None Achievements -------------- None Challenges ------------ None Game ------ Seed BackupChainRailgun Manual? 0 Play Time 00:13:09 Cumulative 120.5 hours Start 2026.04.03 @ 16:31:40 End 2026.04.03 @ 16:41:09 Sessions 1 Manual Loads 0 Difficulty Rogue Special Mode None Game No. 180 Rogue 180 Adventurer 0 Explorer 0 Win Type - Total 1 Types 1/0/0/0/0/0/0/0/0/0 Lore% 50 Gallery% 52 Achievement% 39 Wizard Run 0 Options --------- Layout 1 ASCII 0 Keyboard 1 Movement Arrows Keybinds 0 Fullscreen 1 Font 24/Smallcaps Map View 50x35 Zoom Use 0% Tactical HUD 1 Map Filters NONE Filters NONE Steam 1 RUN: 1a44fbd0-9125-4da2-b618-2c5594c4b1a4